{"text_format":"1","workbook":"xlsx","n_sheets":4,"sheets":["Damer","Herrer","Ark2","Ark3"],"not_rendered":{"charts":0,"images":0,"macros":0,"external_links":0,"defined_names":0,"comments":0,"pivot_tables":0},"unopened":[],"bounds":{"document_bytes":16777216,"sheet_cells":100000,"rows_first":2000,"rows_last":500,"rows_between":2000,"halvings":0,"cell_chars":16384,"cell_head_chars":4096},"cells_cut":0,"cells_raw":0,"read":"whole","date_system":"1900"}

{"sheet":"Damer","index":0,"n_rows":29,"n_cols":44,"rows_kept":29,"cut":false,"hidden":false,"merged":[]}
["Navn","Klubb","Team","Klasse","F.år","Skikrets","Total","Plast","Sum","Midtstbakken 07.11","Midtstbakken 08.11","WC Lillehammer 05.12","COC Notodden 11.12","COC Notodden 12.12","WC Nizhny Tagil 12.12","WC Nizhny Tagil 13.12","Vikersund 19.12","WC Sapporo 16.01","WC Sapporo 17.01","Midstubakken 16.01","Midstubakken 17.01","Steinfjellbakken 23.01","Steinfjellbakken 24.01","WC Zao 22.01","WC Zao 23.01","WC Oberstdorf 30.01","WC Oberstdorf 31.01","Holmenkollen 30.01","Holmenkollen 31.01","WC Hinzenbach 06.02","WC Hinzenbach 07.02","WC Holenkollen 04.02","WC Ljubno 13.02","YOWG Lillehammer 16.02","WC Lahti 19.02","WM jr Rasnov 23.02","WC Almaty 27.02","WC Almaty 28.02","Nordisk Otepaa ","Bjørklibakken 27.02","Bjørklibakken 28.02","NM Hamran 08.03","NM jr Granåsen 12.03","Skarbakken 19.03"]
["Maren Lundby","Kolbukameratene","Lillehammerhopp","K NC Elite",1994,"Oppland Skikrets",{"$f":"SUM(H2:I2)","v":20655},7933,{"$f":"SUM(J2:AT2)","v":12722},null,null,940,null,null,710,870,null,830,790,null,null,null,null,595,610,497,940,null,null,940,910,970,650,null,830,null,850,790]
["Line Jahr","Vikersund IF","Lillehammerhopp","K NC Elite",1984,"Buskerud Skikrets",14178,7983,6195,null,null,546,null,null,750,730,null,null,null,null,null,null,null,null,null,469,539,null,null,469,null,null,565,null,580,null,525,532,null,null,null,490]
["Silje Opseth","Holeværingen IL","Flying Team Vikersund","K NC",1999,"Buskerud Skikrets",11053,2543,8510,490,490,455,672,651,null,null,490,null,null,500,500,null,null,null,null,null,497,null,null,434,null,525,462," ",630,414,null,null,null,null,null,500,300,500]
["Anna Odine Strøm","Alta IF","Hedmarkhopp","K NC ",1998,"Finnmark Skikrets",9498,1656,7842,480,480,436,686,679,null,null,500,null,null,480,480,null,null,null,null,null,null,500,500,null,469,550,null,454,null,378,null,null,null,null,null,480,290]
["Tonje Bakke","Elverum Hopp","NTG","K NC",1998,"Hedmark Skikrets",8872,4143,4729,null,null,null,658,637,null,null,480,null,null,462,470,null,null,null,null,null,null,490,490,null,null,null,null,null,null,316,null,null,null,null,null,446,280]
["Anniken Mork","Ready","Kollenhopp","K NC ",1991,"Oslo Skikrets",6523,4543,1980,500,500,null,null,null,null,null,null,null,null,490,490]
["Hanna Midtsundstad","Vaaler IF","Hedmarkhopp","K NC",1999,"Hedmark Skikrets",5303,920,4383,462,462,null,616,595,null,null,462,null,null,446,446,null,null,null,null,null,null,null,null,null,null,null,null,null,null,null,null,null,170,null,null,454,270]
["Karoline Andrea Røstad","Skogn IL","Trønderhopp","K NC ",1995,"Nord-Tr.lag Skikrets",3812,0,3812,null,null,null,null,null,null,null,null,null,null,454,454,500,500,null,null,null,null,null,null,null,null,null,null,null,null,null,null,null,null,500,500,414,null,490]
["Thea Sofie Kleven","Gjerpenkollen hoppklubb","Flying Team Vikersund","K NC",2000,"Buskerud Skikrets",3136,0,3136,470,470,null,null,null,null,null,470,null,null,470,462,null,null,null,null,null,null,null,null,null,null,null,null,null,null,324,null,null,null,null,null,470]
["Ingrid Eggen","IL Nansen","Hedmarkhopp","K NC",1999,"Hedmark Skikrets",1894,366,1528,null,null,null,null,null,null,null,null,null,null,290,290,null,null,null,null,null,null,null,null,null,null,null,null,null,null,null,null,null,null,300,300,348]
["Ingebjørg Saglien Bråten","Etnedal Skilag",null,"K NC",1999,"Oppland Skikrets",1171,0,1171,null,null,null,null,null,null,null,null,null,null,300,300,null,null,null,null,null,null,null,null,null,null,null,null,null,null,null,null,null,165,null,null,406]
["Mari Leinan Lund","Tolga IL","Hedmarkhopp","K NC",1999,"Hedmark Skikrets",1030,372,658,null,null,null,null,null,null,null,null,null,null,null,null,null,null,null,null,null,null,null,null,null,null,null,null,null,null,null,null,null,null,null,null,398,260]
["Thea Minyan Bjørseth","Lensbygda Sp.klubb",null,"K NC",2003,"Oppland Skikrets",462,0,462,null,null,null,null,null,null,null,null,null,null,null,null,null,null,null,null,null,null,null,null,null,null,null,null,null,null,null,null,null,null,null,null,462]
["Karoline Bjerke Skatvedt","Trøgstad Skiklubb",null,"K NC",2000,"Østfold Skikrets",454,454,0]
["Maria Beisvåg","Jardar IL","Kollenhopp","K NC"," ","Akershus Skikrts",438,0,438,null,null,null,null,null,null,null,null,null,null,438]
["Gyda Westvold Hansen","IL Nansen","Hedmarkhopp","K NC",2002,"Hedmark Skikrets",430,0,430,null,null,null,null,null,null,null,null,null,null,null,null,null,null,null,null,null,null,null,null,null,null,null,null,null,null,null,null,null,null,null,null,430]
["Emilie Serina Røstad","Skogn IL","Trønderhopp","K NC",2000,"Nord-Tr.lag Skikrets",422,0,422,null,null,null,null,null,null,null,null,null,null,null,null,null,null,null,null,null,null,null,null,null,null,null,null,null,null,null,null,null,null,null,null,422]
["Pernille Kvernmo","Steinkjer Skiklubb","Trønderhopp","K NC",2000,"Nord-Tr.lag Skikrets",398,0,398,null,null,null,null,null,null,null,null,null,null,null,null,null,null,null,null,null,null,null,null,null,null,null,null,null,null,null,null,null,null,null,null,398]
["Thea Øihaugen","Gausdal SL",null,"K NC",2001,"Oppland Skikrets",657,0,657,null,null,null,null,null,null,null,null,null,null,null,null,null,null,null,null,null,null,null,null,null,null,null,null,null,null,null,null,null,null,null,null,392,265]
["Eirin Kvandal","Mosjøen IL",null,"K NC",2001,"Nordland",372,0,372,null,null,null,null,null,null,null,null,null,null,null,null,null,null,null,null,null,null,null,null,null,null,null,null,null,null,null,null,null,null,null,null,372]
["Rebecca Eggen","Røykenhopp","Flying Team Vikersund","K NC",1999,"Buskerud Skikrets",360,0,360,null,null,null,null,null,null,null,null,null,null,null,null,null,null,null,null,null,null,null,null,null,null,null,null,null,null,null,null,null,null,null,null,360]
["Julie Melø","Namdalseid IL","Trønderhopp","K NC",1999,"Nord-Tr.lag Skikrets",354,0,354,null,null,null,null,null,null,null,null,null,null,null,null,null,null,null,null,null,null,null,null,null,null,null,null,null,null,null,null,null,null,null,null,354]
["Madelein Kvam Mathisen","Holeværingen IL",null,"K NC",1999,"Buskerud Skikrets",342,0,342,null,null,null,null,null,null,null,null,null,null,null,null,null,null,null,null,null,null,null,null,null,null,null,null,null,null,null,null,null,null,null,null,342]
["Marte Leinan Lund","Tolga IL","Hedmarkhopp","K NC",2001,"Hedmark Skikrets",336,0,336,null,null,null,null,null,null,null,null,null,null,null,null,null,null,null,null,null,null,null,null,null,null,null,null,null,null,null,null,null,null,null,null,336]
["Hannah Taubert","Namsos IL",null,"K NC",1999,"Nord-Tr.lag Skikrets",330,0,330,null,null,null,null,null,null,null,null,null,null,null,null,null,null,null,null,null,null,null,null,null,null,null,null,null,null,null,null,null,null,null,null,330]
["Sara Melø","Namdalseid IL",null,"K NC",1998,"Nord-Tr.lag Skikrets",0,0,0]
["Astrid Louise Baarset","Botne Skiklubb",null,"K NC",2000,"Telemark/Vestfold",0,0,0]
["Marthe Pauline  Skinnes","Ivrig IL","Flying Team Vikersund","K NC",1994,"Buskerud Skikrets",0,0,0]

{"sheet":"Herrer","index":1,"n_rows":154,"n_cols":94,"rows_kept":154,"cut":false,"hidden":false,"merged":[]}
["ETTERNAVN","FORNAVN","KLUBB","TEAM","KLASSE","F.år","SKIKRETS","TOTAL","PLAST","SUM","Midtstbakken 07.11","Midtstbakken 08.11","Klingenthal 22.11","Renabakken 28.11","Renabakken 29.11","WC Lillehammer 05.12","WC Lillehammer 06.12","FIS Notodden 10.12","FIS Notodden 11.12","COC Rena 11.12","COC Rena 12.12","COC Rena 13.12","WC Nizhny Tagil 12.12","WC Nizhny Tagil 13.12","Vikersund 19.12","Rovaniemi 19.12","Rovaniemi 20.12","WC Engelberg 19.12","WC Engelberg 20.12","Vikersund 20.12","COC Engelberg27.12","COC Engelberg28.12","WC Oberstdorf 29.12","WC Garmisch P. 01.01","WC Innsbruck 03.01","Granåsen 09.01","WC Bischofshofen 06.01","COC Garmisch-P 09.01","COC Garmisch-P 10.01","WC Willingen 10.01","COC Willingen 17.01","COC Willingen 17.01","VM Kulm 16.01","Midstubakken 16.01","Midstubakken 17.01","Steinfjellbakken 23.01","Steinfjellbakken 24.01","COC Sapporo 22.01","COC Sapporo 23.01","COC Sapporo 24.01","WC Zakpane 24.01","NM Lillehammer 26.01","COC Bischofshofen 30.01","COC Bischofshofen 31.01","WC Sapporo 30.01","WC Sapporo 31.01","Holmenkollen 30.01","Holmenkollen 31.01","FIS-cup Whistler 06.02","FIS Whistler 06.02","FIS-cup Whistler 07.02","COC Planica 06.02","COC Planica 07.02","WC Granåsen 10.02","FIS-cup Eau Claire 12.02","FIS-cup Eau Claire 13.02","COC Zakopane 13.02","COC Zakopane 14.02","WC Vikersund 12.02","WC Vikersund 13.02","WC Vikersund 14.02","YOWG Lillehammer 16.02","COC Iron Mountain 20.02","COC Iron Mountain 21.02","WC Lahti 19.02","WC Lahti 21.02","WC Kuopio 23.02","COC Brotterode 27.02","WM jr Rasnov 23.02","WC Almaty 27.02","WC Almaty 28.02","COC Vikersund 04.03","COC Vikersund 05.03","WC Wisla 04.03","FIS Sapporo 04.03","Nordisk Otepaa ","Bjørklibakken 27.02","Bjørklibakken 28.02","NM jr K140 Granåsen 11.03","NM JR K105 Granåsen 12.03","COC Chaikovski 12.03","COC Chaikovski 13.03","WC Titisee-Neustadt 12.03","Skarbakken 19.03"]
["Gangnes ","Kenneth","Kolbukameratene","Lillehammerhopp","M NC Elite",1989,"Oppland  ",{"$f":"SUM(I2+J2)","v":30812},7241,{"$f":"SUM(K2:DD2)","v":23571},null,null,770,null,null,970,1000,null,null,null,null,null,830,810,null,null,null,890,940,null," ",null,870,970,940,null,890,null,null,970,null,null,970,null,null,null,null,null,null,null,910,500,null,null,511,595,null,null,null,null,null,null,null,830,null,null,null,null,970,910,870,null,null,null,910,565,630,null,null,830,810,null,null,970,null,null,null,null,null,null,null,null,940]
["Forfang ","Johann Andrè","Tromsø Skiklub","Trønderhopp","M NC Elite",1995,"Troms",25310,3480,21830,null,null,810,null,null,710,940,null,null,null,null,null,890,940,null,null,null,710,910,null,null,null,830,910,910,null,850,null,null,810,null,null,910,null,null,null,null,null,null,null,890,490,null,null,610,970,null,null,null,null,null,null,null,630,null,null,null,null,830,970,850,null,null,null,870,790,890,null,null,null,null,null,null,910,null,null,null,null,null,null,null,null,1000]
["Tande ","Daniel Andrè","Kongsberg IF","Flying Team Vikersund","M NC Elite",1994,"Buskerud  ",30203,8847,21356,null,null,1000,null,null,870,730,null,null,null,null,null,870,890,null,null,null,539,670,null,null,null,790,504,392,null,580,null,null,870,null,null,630,null,null,null,null,null,null,null,770,292,null,null,469,810,null,null,null,null,null,null,null,850,null,null,null,null,810,810,890,null,null,null,970,850,970,null,null,910,940,null,null,850,null,null,null,null,null,null,null,null,830]
["Stjernen","Andreas","Sprova","Trønderhopp","M NC Elite",1988,"N.Tr.lag",25487,6269,19218,470,462,690,null,null,940,null,null,null,null,null,null,910,770,null,null,null,690,511,null,null,null,595,690,610,null,730,null,null,830,null,null,null,null,null,null,null,null,null,null,710,480,null,null,565,550,null,null,null,null,null,null,null,750,null,null,null,null,850,790,940,null,null,null,650,469,750,null,null,546,730,null,null,730,null,null,null,null,null,null,null,null,810]
["Hilde","Tom","Asker SK","Kollenhopp","M NC Elite",1987,"Akershus  ",24687,5727,18960,490,470,580,null,null,518,580,null,null,null,null,null,420,539,null,null,null,650,546,null,null,700,null,null,650,null,427,686,609,null,686,553,null,null,null,null,null,672,700,658,null,372,693,679,null,null,null,null,null,null,null,null,null,580,null,null,null,null,371,null,null,null,null,null,490,434,497,null,null,483,483,693,693,null,null,null,null,null,null,null,679,679]
["Fannemel","Anders","Hornindal IL","Lillehammerhopp","M NC Elite",1991,"Sogn og Fjordane ",24546,6010,18536,null,null,539,null,null,427,null,null,null,null,null,null,750,830,null,null,null,870,null,null,null,null,910,850,750,null,630,null,null,850,null,null,850,null,null,null,null,null,null,null,690,446,null,null,580,1000,null,null,null,null,null,null,null,476,null,null,null,null,770,650,830,null,null,null,830,490,518,null,null,730,650,null,null,750,null,null,null,null,null,null,null,null,870]
["Hauer ","Joachim","Bækkelaget SK","Kollenhopp","M NC Elite",1991,"Oslo",24380,7060,17320,480,490,null,500,438,null,690,null,null,null,null,null,940,595,null,null,null,750,483,null,null,null,770,434,539,null,610,null,null,670,null,null,null,null,null,null,null,null,null,null,420,286,null,null,710,790,null,null,null,null,null,null,null,770,null,null,null,null,670,770,670,null,null,null,690,462,580,null,null,580,532,null,null,455,null,null,null,null,null,null,null,null,546]
["Granerud","Halvor Egner","Asker Skiklubb","Kollenhopp","M NC Elite",1996,"Akershus",21951,7658,14293,438,438,null,490,490,null,null,null,null,693,693,665,null,null,null,686,679,null,null,null,null,null,392,462,null,null,null,null,null,null,595,535,null,null,null,null,null,360,658,630,null,462,null,null,null,null,500,500,null,null,null,623,460,null,null,null,null,null,null,null,null,null,null,null,null,null,null,null,372,null,null,686,686,null,null,null,null,null,300,300,null,null,null,500]
["Røe ","Espen  ","Tolga IL","Trønderhopp","M NC Elite",1993,"Hedmark  ",17302,3930,13372,446,430,null,480,414,null,null,null,null,630,672,616,null,null,null,609,623,null,null,null,null,505,null,null,null,null,null,535,null,null,658,637,null," ",null,null,null,637,623,651,null,454,null,null,null,null,null,null,null,null,null,505,450,null,null,null,null,null,null,null,null,null,623,665,null,null,null,574,null,null,null,535,400]
["Bjøreng ","Joacim Ødegård","Røykenhopp","Flying Team Vikersund","M NC Elite",1995,"Buskerud",19606,7890,11716,454,454,null,454,500,null,null,null,null,430,310,390,null,null,360,null,null,null," ",480,null,null,null,null,null,500,null,null,null,null,588,665,null,null,null,null,null,null,null,null,null,null,658,609,null,null,null,null,null,null,null,616,475,null,null,null,null,null,518,null,null,null,637,672,null,null,null,644,null,null,null,658,644]
["Bjerkeengen ","Fredrik","Kolbukameratene","Lillehammerhopp","M NC Elite",1988,"Oppland",19606,8190,11416,500,292,null,470,462,399,null,null,null,679,686,609,null,null,null,693,672,null,null,null,588,553,null,null,null,null,null,310,290,null,null,null,null,null,null,null,null,null,null,null,null,470,651,520,null,null,null,null,null,null,null,380,581,null,null,null,null,null,null,null,null,null,644,567,null,null,null,400]
["Lindvik","Marius  ","Rælingen skiklubb","Kollenhopp","M NC Elite",1998,"Akershus",14566,3618,10948,430,480,null,430,470,490,null,null,null,300,665,595,null,null,500,null,null,null,null,360,567,567,null,null,null,null,null,350,400,null,null,null,null,480,490,null,null,null,null,null,null,384,null,null,null,null,490,470,null,null,null,null,null,null,null,null,null,null,null,null,null,490,null," ",null,null,null,null,null,null,null,560,460,null,null,null,null,null,250,270]
["Johansson  ","Robert","Søre Ål IL","Lillehammerhopp","M NC Elite",1990,"Oppland",12937,3124,9813,366,384,null,372,392,null,null,null,null,null,null,null,null,null,398,null,null,null,null,366,null,null,null,null,null,480,null,null,null,null,320,430,null,null,null,null,null,null,null,null,null,430,260,490,null,null,null,null,null,null,null,null,260,null,null,null,null,null,539,483,630,null,679,658,null,null,null,630,null,null,null,602,644]
["Velta ","Rune","Lommedalen IL","Kollenhopp","M NC Elite",1989,"Akershus",13978,4682,9296,null,null,455,null,null,null,null,null,null,null,null,null,null,null,470,null,null,null,null,470,310,290,null,null,null,null,null,637,553,null,581,658,null,null,null,null,null,380,616,574,null,392,null,null,null,null,null,null,null,null,null,410,380,null,null,null,null,null,null,null,null,null,672,644,null,null,null,420,384]
["Aune ","Joakim","Byåsen IL","Trønderhopp","M NC Elite",1993,"S.Tr.lag",10356,1736,8620,422,446,null,446,422,null,null,null,null,490,440,null,null,null,462,null,null,null,null,490,null,null,null,null,null,470,null,null,null,null,null,null,null,348,480,490,490,null,null,null,null,336,null,null,null,null,480,406,null,null,null,null,null,null,null,null,505,567,null,null,null,null,null,null,null,null,null,430]
["Pedersen ","Robin","Stålkameratene IL","Trønderhopp","M NC Elite",1996,"Nordland",9264,1482,7782,290,290,null,300,430,null,null,270,280,null,null,null,null,null,null,602,520,null,null,null,340,350,null,null,null,406,null,null,null,null,null,null,null,406,414,500,392,null,null,null,null,null,350,300,null,null,null,null,null,null,null,null,null,null,null,null,240,240,null,null,null,null,null,null,null,null,null,null,372,null,null,null,null,null,null,null,null,null,260,230]
["Sjøen ","Phillip","Bækkelaget SK","Kollenhopp","M NC Elite",1995,"Oslo  ",11106,3452,7654,null,null,null,438,480,null,null,null,null,553,567,623,null,null,490,null,null,null,null,500,290,240,null,null,null,null,null,567,602,null,null,null,null,490,500,null,null,null,null,null,null,406,null,null,null,null,446,462]
["Ødegård","Jesper","Gausdal Skilag","NTG","M NC Elite",1998,"Oppland",9723,2244,7479,330,310,null,354,336,null,null,170,125,null,null,null,null,null,446,null,null,null,null,398,null,null,null,null,null,454,null,null,null,null,null,null,null,454,454,462,null,null,null,null,null,330,null,null,null,null,470,490,null,null,null,null,null,null,null,null,250,310,null,null,null,null,null,null,null,null,null,null,316,null,null,null,null,null,null,null,null,null,270,280,null,null,null,470]
["Fredheim ","Kenneth Henningsmo","Nansen IL","Trønderhopp","M NC Elite",1997,"Hedmark",8839,1718,7121,280,330,null,384,330,null,null,null,null,null,null,null,null,null,366,null,null,null,null,422,null,null,null,null,null,384,null,null,null,null,null,null,null,360,384,454,480,null,null,null,null,398,null,null,null,null,438,438,null,null,null,null,null,null,null,null,null,null,null,null,null,null,null,null,null,null,null,null,null,null,null,null,null,null,235,null,438,470,265,265]
["Hammer ","Tord Markussen","Tromsø Skiklub","Trønderhopp","M NC Elite",1988,"Troms  ",6602,0,6602,384,398,null,462,446,null,null,null,null,null,null,null,null,null,454,null,null,null,null,406,null,null,null,null,null,422,null,null,null,null,null,null,null,422,422,480,470,null,null,null,null,null,null,null,null,null,430,454,null,null,null,null,null,null,null,null,null,null,null,null,null,null,null,null,null,null,null,null,null,null,null,null,null,null,null,null,490,462]
["Haukedal ","Rickard","Bækkelaget SK","Kollenhopp","M NC Elite",1996,"Oslo",11004,4740,6264,342,372,null,392,384,null,null,null,null,null,null,null,null,null,480,null,null,null,null,462,null,null,null,null,null,414,null,null,null,null,null,null,null,438,406,392,422,null,null,null,null,316,null,null,null,null,null,null,null,null,null,null,null,null,null,null,null,null,null,null,null,null,null,null,null,null,null,null,null,null,null,null,null,null,null,null,414,490,280,260]
["Braathen","Mathias","Øvrevoll/Hosle IL","Kollenhopp","M NC Elite",1996,"Oslo",8708,2462,6246,392,360,null,406,354,null,null,null,115,null,null,null,null,null,354,null,null,null,null,446,null,null,null,null,null,null,null,null,null,null,null,null,null,446,430,438,430,null,null,null,null,null,null,null,null,null,414,372,null,null,null,null,null,null,null,null,null,null,null,null,null,null,null,null,null,null,null,null,null,null,null,null,null,null,null,null,470,454,175,190]
["Lippestad","Carl Henning","Bækkelaget SK","Kollenhopp","M NC Elite",1998,"Oslo",8559,2435,6124,348,324,null,324,316,null,null,130,80,null,null,null,null,null,414,null,null,null,null,446,null,null,null,null,null,398,null,null,null,null,null,null,null,430,446,406,438,null,null,null,null,360,null,null,null,null,354,360,null,null,null,null,null,null,null,null,null,null,null,null,null,null,null,null,null,null,null,null,null,null,null,null,null,null,null,190,null,null,170,190]
["Søberg ","Sigurd Nymoen","Furnes Skil.for","Lillehammerhopp","M NC Elite",1994,"Hedmark",10622,4508,6114,372,354,null,414,378,null,null,null,null,null,430,null,null,null,438,null,null,null,null,454,null,null,null,null,null,446,null,null,null,null,null,null,null,414,366,null,null,null,null,null,null,348,null,null,null,null,454,446,null,null,null,null,null,null,null,null,null,null,null,null,null,null,null,null,null,null,null,null,null,null,null,null,null,null,null,null,300,500]
["Skinnes ","Stian Andrè","Gjerpenkollen hoppklubb","Lillehammerhopp","M NC A",1991,"Buskerud",8785,2908,5877,360,348,null,336,372,null,null,null,null,null,null,null,null,null,378,null,null,null,null,342,null,null,null,null,null,342,null,null,null,null,null,null,null,230,225,null,null,null,null,null,null,414,null,null,null,null,265,280,270,180,280,null,null,null,270,205,null,null,null,null,null,null,null,null,null,null,null,null,null,null,null,null,null,null,null,null,245,290,null,null,null,null,null,245]
["Berg","Jørgen","Byåsen IL","Trønderhopp","M NC Elite",1997,"S.Tr.lag",7072,1231,5841,250,270,null,225,280,null,null,null,60,null,null,null,null,null,270,null,null,null,null,null,null,null,null,null,null,240,null,null,null,null,null,null,null,372,462,414,414,null,null,null,null,null,null,null,null,null,366,378,null,null,null,null,null,null,null,null,null,null,null,null,null,null,null,null,null,null,null,null,null,null,null,null,null,null,null,null,462,438,220,240,null,null,null,480]
["Villumstad","Fredrik Eirinsønn","Skimt IL","Kollenhopp","M NC Elite",1999,"Akershus",8174,2347,5827,398,392,null,348,292,null,null,165,145,null,null,null,null,null,422,null,null,null,null,null,null,null,null,null,null,366,null,null,null,null,null,null,null,280,290,265,270,null,null,null,null,298,null,null,null,null,360,414,null,null,null,null,null,null,null,null,null,null,null,null,null,null,null,null,null,null,null,null,null,null,null,null,null,null,null,165,null,null,245,250,null,null,null,462]
["Berger ","Lars Brodshaug","Eidsvold Værks Sk","Lillehammerhopp","M NC A",1995,"Akershus",10701,5229,5472,286,null,null,398,398,null,null,null,null,null,null,null,null,null,348,null,null,null,null,430," ",null,null,null,null,438,null,null,null,null,null,null,null,378,354,null,null,null,null,null,null,422,null,null,null,null,300,480,null,null,null,null,null,null,null,null,null,280,null,null,null,null,null,null,null,null,null,null,null,null,null,null,null,null,null,null,480,480]
["Dahl ","Oliver","Byåsen IL","Trønderhopp","M NC Elite",1997,"S.Tr.lag",6399,947,5452,200,185,null,290,265,null,null,null,null,null,null,null,null,null,255,null,null,null,null,null,null,null,null,null,null,290,null,null,null,null,null,null,null,354,384,398,446,null,null,null,null,null,null,null,null,null,398,366,null,null,null,null,null,null,null,null,null,null,null,null,null,null,null,null,null,null,null,null,null,null,null,null,null,null,null,null,406,406,190,165,null,null,null,454]
["Hafslund ","Oskar Alexander","Nordbygda/Løtenski","NTG","M NC Elite",1997,"Hedmark",6082,665,5417,245,265,null,190,260,null,null,70,135,null,null,null,null,null,280,null,null,null,null,null,null,null,null,null,null,265,null,null,null,null,null,null,null,398,392,430,454,null,null,null,null,null,null,null,null,null,406,430,null,null,null,null,null,null,null,null,null,null,null,null,null,null,null,null,null,null,null,null,null,null,null,null,null,null,null,null,430,422,195,150]
["Sæther","Rishi","Liabygda IL","Lillehammerhopp","M NC A",1997,"N.Tr.lag",7840,2580,5260,324,366,null,366,360,null,null,null,null,85,null,null,null,null,null,null,null,null,null,392,null,null,null,null,null,366,null,null,null,null,null,null,null,255,260,270,255,null,null,null,null,366,null,null,null,null,255,240,null,null,null,null,null,null,null,null,null,null,null,null,null,null,null,null,null,null,null,null,null,null,null,null,null,null,null,null,255,280,165,160,null,null,null,240]
["Sumstad ","Are","Sør-Fron IL","NTG","M NC Elite",1996,"Oppland",7330,2353,4977,414,422,null,422,454,null,null,120,220,null,null,null,null,null,null,null,null,null,null,372,null,null,null,null,null,430,null,null,null,null,null,null,null,462,446,470,500,null,null,null,null," ",null,null,null,null,null,null,null,null,null,null,null,null,null,null,null,null,null,null,null,null,null,null,null,null,null,null,null,null,null,null,null,null,null,null,null,null,245]
["Myhren","Mats Bjerke","Søre Ål IL","NTG","M NC Elite",1997,"Oppland",{"$f":"SUM(I34+J34)","v":6777},1907,{"$f":"SUM(K34:DD34)","v":4870},260,220,null,245,240,null,null,null,130,null,null,null,null,null,null,null,null,null,null,null,null,null,null,null,null,280,null,null,null,null,null,null,null,290,265,280,240,null,null,null,null,378,null,null,null,null,384,348,null,null,null,null,null,null,null,null,null,null,null,null,null,null,null,null,null,null,null,null,null,null,null,null,null,null,null,null,446,414,230,220]
["Sandell ","Jonas Sloth","Tromsø Skiklub","Trønderhopp","M NC Elite",1995,"Troms",4826,0,4826,null,null,null,260,290,null,null,null,null,null,null,null,null,null,300,null,null,null,null,null,null,null,null,null,null,300,null,null,null,null,null,null,null,384,360,384,398,null,null,null,null,null,null,null,null,null,392,384,null,null,null,null,null,null,null,null,null,null,null,null,null,null,null,null,null,null,null,null,null,null,null,null,null,null,null,null,454,430,null,null,null,null,null,490]
["Søgård ","Jonas Gropen","Løten/Nordbygda","Lillehammerhopp","M NC A",1996,"Hedmark",8699,3961,4738,336,406,null,378,406,null,null,null,null,null,null,null,null,null,392,null,null,null,null,378,null,null,null,null,null,348,null,null,null,null,null,null,null,392,372,null,null,null,null,null,null,null,null,null,null,null,240,265,null,null,null,null,null,null,null,null,null,null,null,null,null,null,null,null,null,null,null,null,null,null,null,null,null,null,null,null,240,190,200,195]
["Ringen ","Sondre","Bækkelaget SK","Kollenhopp","M NC Elite",1996,"Oslo",6221,1520,4701,270,null,null,180,230,null,null,null,null,null,null,null,null,null,265,null,null,null,null,null,null,null,null,null,null,270,null,null,null,null,null,null,null,480,470,446,462,null,null,null,null,304,null,null,null,null,422,392,null,null,null,null,null,null,null,null,null,null,null,null,null,null,null,null,null,null,null,null,null,null,null,null,null,null,null,null,null,null,255,255]
["Buskum","Andreas Granerud","Raufoss IL","Lillehammerhopp","M NC Elite",1996,"Oppland",7485,2936,4549,316,342,null,298,324,null,null,null,null,null,null,null,null,null,145,null,null,null,null,null,null,null,null,null,null,200,null,null,null,null,null,null,null,250,280,255,280,null,null,null,null,234,null,null,null,null,null,null,null,null,null,null,null,null,215,265,null,null,null,null,null,null,null,null,null,null,null,null,null,null,null,null,null,null,null,null,422,398,155,170]
["Marø ","Idar","Alta IF","Kollenhopp","M NC A",1995,"Finnmark",6967,2574,4393,360,414,null,342,348,null,null,null,null,45,null,null,null,null,430,null,null,null,null,414,null,null,null,null,null,360,null,null,null,null,null,null,null,372,398,null,null,null,null,null,null,null,null,null,null,null,225,235,null,null,null,null,null,null,null,null,null,null,null,null,null,null,null,null,null,null,null,null,null,null,null,null,null,null,null,null,235,215]
["Strand ","Knut Jokerud","Vikersund IF","Flying Team Vikersund","M NC A",1996,"Buskerud",5471,1106,4365,205,225,null,215,205,null,null,null,null,null,null,null,null,null,null,null,null,null,null,null,null,null,null,null,null,170,null,null,null,null,null,null,null,155,215,null,null,null,null,null,null,210,null,null,null,null,230,210,260,190,265,null,null,null,225,235,null,null,null,null,null,null,null,null,null,null,null,null,null,null,null,null,null,null,null,null,255,300,125,215,null,null,null,255]
["Ladehaug","Anders","Nordre Land IL"," ","M NC Elite",null,"Oppland",4962,710,4252,175,205,null,175,225,null,null,null,null,null,null,null,null,null,260,null,null,null,null,null,null,null,null,null,null,null,null,null,null,null,null,null,null,245,300,290,300,null,null,null,null,324,null,null,null,null,378,342,null,null,null,null,null,null,null,null,null,null,null,null,null,null,null,null,null,null,null,null,null,null,null,null,null,null,null,135,null,null,235,225,null,null,null,438]
["Sagbakken","Mats K","Furnes Skil.for","NTG","M NC Elite",1999,"Hedmark",5284,1300,3984,240,235,null,195,255,null,null,null,null,null,null,null,null,null,230,null,null,null,null,null,null,null,null,null,null,255,null,null,null,null,null,null,null,270,260,300,265,null,null,null,null,252,null,null,null,null,348,354,null,null,null,null,null,null,null,null,null,null,null,null,null,null,null,null,null,null,null,null,null,null,null,null,null,null,null,140,null,null,210,175]
["Madsen ","Jørgen","Skimt IL","Kollenhopp","M NC A",1994,"Akershus",6322,2525,3797,406,378,null,310,366,null,null,null,null,null,null,null,null,null,372,null,null,null,null,354,null,null,null,null,null,372,null,null,null,null,null,null,null,170,240,null,null,null,null,null,null,354,null,null,null,null,260,215]
["Jacobsen ","Espen","Orkdal IL","Trønderhopp","M NC A",null,"S.Tr.lag",5293,1600,3693,270,215,null,240,180,null,null,null,null,null,null,null,null,null,225,null,null,null,null,null,null,null,null,null,null,190,null,null,null,null,null,null,null,150,155,260,290,null,null,null,null,228,null,null,null,null,160,245,null,null,null,null,null,null,null,null,null,null,null,null,null,null,null,null,null,null,null,null,null,null,null,null,null,null,null,200,null,null,185,200,null,null,null,300]
["Loe ","Jostein","Raufoss IL"," ","M NC A",1994,"Oppland",5803,2167,3636,280,280,null,290,300,null,null,95,null,null,null,null,null,null,384,null,null,null,null,348,null,null,null,null,null,354,null,null,null,null,null,null,null,235,230,null,null,null,null,null,null,null,null,null,null,null,280,300,null,null,null,null,null,null,null,null,null,null,null,null,null,null,null,null,null,null,null,null,null,null,null,null,null,null,null,null,null,null,null,null,null,null,null,260]
["Myhr","Sverre Aas","Søre Ål IL","NTG","M NC A",1998,"Oppland",4717,1092,3625,210,200,null,250,190,null,null,50,null,null,null,null,null,null,250,null,null,null,null,null,null,null,null,null,null,230,null,null,null,null,null,null,null,195,150,245,260,null,null,null,null,null,null,null,null,null,200,205,null,null,null,null,null,null,null,null,null,null,null,null,null,null,null,null,null,null,null,null,null,null,null,null,null,null,null,null,230,260,120,130,null,null,null,250]
["Stensgård ","Kristian","Søre Ål IL","Lillehammerhopp","M NC A",1996,"Oppland",6459,2896,3563,298,298,null,330,342,null,null,null,null,null,null,null,null,null,165,null,null,null,null,null,null,null,null,null,null,205,null,null,null,null,null,null,null,225,205,null,null,null,null,null,null,null,null,null,null,null,null,null,null,null,null,null,null,null,155,190,null,null,null,null,null,null,null,null,null,null,null,null,null,null,null,null,null,null,null,null,265,240,205,205,null,null,null,235]
["Viken ","Jonas","Steinkjer Skiklubb","Trønderhopp","M NC A",1997,"N.Tr.lag",4153,623,3530,null,null,null,185,200,null,null,null,null,null,null,null,null,null,240,null,null,null,null,null,null,null,null,null,null,210,null,null,null,null,null,null,null,180,185,250,235,null,null,null,null,310,null,null,null,null,250,250,null,null,null,null,null,null,null,null,null,null,null,null,null,null,null,null,null,null,null,null,null,null,null,null,null,null,null,null,215,230,215,160,null,null,null,215]
["Westerheim ","Oskar P","Bækkelaget SK","Kollenhopp","M NC A",1996,"Oslo",5816,2324,3492,215,210,null,230,220,null,null,null,null,null,null,null,null,null,null,null,null,null,null,null,null,null,null,null,null,220,null,null,null,null,null,null,null,270,245,null,null,null,null,null,null,342,null,null,null,null,270,255,null,null,null,null,null,null,null,null,null,null,null,null,null,null,null,null,null,null,null,null,null,null,null,null,null,null,null,null,280,265,225,245]
["Ingebrigtsen ","Christian","Byåsen IL","Granåsen skiteam","M NC Elite",1994,"S.Tr.lag",3428,0,3428,null,null,null,null,null,null,null,null,null,null,null,null,null,null,null,null,null,null,null,null,null,null,null,null,null,null,null,null,null,null,null,null,null,null,null,422,406,null,null,null,null,438,null,null,null,null,372,398,null,null,null,null,null,null,null,null,null,null,null,null,null,null,null,null,null,null,null,null,null,null,null,null,null,null,null,null,500,446,null,null,null,null,null,446]
["Johannesen","Erik","Botne SK","Flying Team Vikersund","M NC A",1999,"Telemark/Vestfold",4551,1235,3316,170,250,null,220,210,null,null,null,null,null,null,null,null,null,null,null,null,null,null,null,null,null,null,null,null,180,null,null,null,null,null,null,null,175,200,null,null,null,null,null,null,246,null,null,null,null,235,260,null,null,null,null,null,null,null,null,null,null,null,null,null,null,null,null,null,null,null,null,null,null,null,null,null,null,null,null,270,270,130,210,null,null,null,290]
["Lian","Kristian","Ivrig IL","Lillehammerhopp","M NC A",1994,"Telemark/Vestfold",5799,2512,3287,378,342,null,360,310,null,null,null,null,null,null,null,null,null,406,null,null,null,null,392,null,null,null,null,null,336,null,null,null,null,null,null,null,null,348,null,null,null,null,null,null,null,null,null,null,null,195,220]
["Nedrejord ","Ole Mathis","Nordlys IL","NTG","M NC A",1996,"Finnmark",3195,0,3195,null,null,null,null,null,null,null,null,null,null,null,null,null,null,245,null,null,null,null,null,null,null,null,null,null,250,null,null,null,null,null,null,null,240,270,235,245,null,null,null,null,280,null,null,null,null,290,270,null,null,null,null,null,null,null,null,null,null,null,null,null,null,null,null,null,null,null,null,null,null,null,null,null,null,null,null,290,220,180,180]
["Hulløen ","Bendik Netland","Oddersjaa SSK","NTG","M NC B",1996,"Agder/Rogaland",5550,2698,2852,225,240,null,205,195,null,null,null,null,null,null,null,null,null,180,null,null,null,null,null,null,null,null,null,null,225,null,null,null,null,null,null,null,195,165,null,null,null,null,null,null,222,null,null,null,null,200,200,null,null,null,null,null,null,null,null,null,null,null,null,null,null,null,null,null,null,null,null,null,null,null,null,null,null,null,null,200,165,145,90]
["Kleven","Sander  ","Gjerpenkollen hoppklubb","Flying Team Vikersund","M NC B",1998,"Buskerud",3967,1335,2632,150,190,null,155,165,null,null,null,null,null,null,null,null,null,190,null,null,null,null,null,null,null,null,null,null,185,null,null,null,null,null,null,null,135,115,null,null,null,null,null,null,192,null,null,null,null,175,175,null,null,null,null,null,null,null,null,null,null,null,null,null,null,null,null,null,null,null,null,null,null,null,null,null,null,null,null,165,175,135,140,null,null,null,190]
["Randen ","Jacob Tjåland","Folldal IL","NTG","M NC B",1996,"Hedmark",4308,1694,2614,null,null,null,265,245,null,null,null,null,null,null,null,null,null,205,null,null,null,null,null,null,null,null,null,null,195,null,null,null,null,null,null,null,200,145,null,null,null,null,null,null,274,null,null,null,null,155,165,null,null,null,null,null,null,null,null,null,null,null,null,null,null,null,null,null,null,null,null,null,null,null,null,null,null,null,null,190,160,140,135,null,null,null,140]
["Solberg ","Christian Røste","IL Jardar","Kollenhopp","M NC A",1999,"Akershus",3957,1167,2790,170,175,null,160,190,null,null,null,null,null,null,null,null,null,215,null,null,null,null,null,null,null,null,null,null,165,null,null,null,null,null,null,null,215,250,null,null,null,null,null,null,null,null,null,null,null,220,180,null,null,null,null,null,null,null,null,null,null,null,null,null,null,null,null,null,null,null,null,null,null,null,null,null,null,null,null,210,245,160,235]
["Håre","Anders Sandberg","Vikersund IF","Flying Team Vikersund","M NC B",1999,"Buskerud",3953,1373,2580,230,230,null,210,175,null,null,null,null,null,null,null,null,null,175,null,null,null,null,null,null,null,null,null,null,null,null,null,null,null,null,null,null,185,135,null,null,null,null,null,null,240,null,null,null,null,170,190,null,null,null,null,null,null,null,null,null,null,null,null,null,null,null,null,null,null,null,null,null,null,null,null,null,null,null,null,180,200,105,null,null,null,null,155]
["Strømhaug","Peder Skjæret","Folldal IL","NTG","M NC A",1998,"Hedmark",3425,680,2745,180,165,null,150,160,null,null,null,null,null,null,null,null,null,155,null,null,null,null,null,null,null,null,null,null,160,null,null,null,null,null,null,null,115,125,220,215,null,null,null,null,null,null,null,null,null,180,170,null,null,null,null,null,null,null,null,null,null,null,null,null,null,null,null,null,null,null,null,null,null,null,null,null,null,null,null,190,240,null,115,null,null,null,205]
["Pedersen ","Peder Nævestad","Byaasen SK","Trønderhopp","M NC A",1995,"S.Tr.lag",4320,1600,2720,null,null,null,255,270,null,null,null,null,null,null,null,null,null,220,null,null,null,null,null,null,null,null,null,null,245,null,null,null,null,null,null,null,300,210,240,220,null,null,null,null,null,null,null,null,null,null,null,null,null,null,null,null,null,null,null,null,null,null,null,null,null,null,null,null,null,null,null,null,null,null,null,null,null,null,null,230,260,null,null,null,null,null,270]
["Sommerstad","Martin","Raufoss IL","NTG","M NC A",1998,"Oppland",4180,1470,2710,195,175,null,null,null,null,null,null,null,null,null,null,null,null,150,null,null,null,null,null,null,null,null,null,null,190,null,null,null,null,null,null,null,165,180,225,250,null,null,null,null,null,null,null,null,null,245,290,null,null,null,null,null,null,null,null,null,null,null,null,null,null,null,null,null,null,null,null,null,null,null,null,null,null,null,null,185,260,80,120]
["Breivik","Andreas Varsi","Tromsø Skiklub","Trønderhopp","M NC A",1997,"Troms",2950,305,2645,null,null,null,140,140,null,null,null,null,null,null,null,null,null,130,null,null,null,null,null,null,null,null,null,null,160,null,null,null,null,null,null,null,180,190,180,190,null,null,null,null,null,null,null,null,null,165,190,null,null,null,null,null,null,null,null,null,null,null,null,null,null,null,null,null,null,null,null,null,null,null,null,null,null,null,null,265,225,110,115,null,null,null,265]
["Henningsen ","Alexander","Tromsø Skiklub","Lillehammerhopp","M NC B",1994,"Troms",5023,2384,2639,310,304,null,304,298,null,null,null,null,null,null,null,null,null,190,null,null,null,null,null,null,null,null,null,null,null,null,null,null,null,null,null,null,125,170,null,null,null,null,null,null,268,null,null,null,null,190,135,null,null,null,null,null,null,null,null,null,null,null,null,null,null,null,null,null,null,null,null,null,null,null,null,null,null,null,null,170,175]
["Riiber ","Jarl Magnus","Heming IL","Kollenhopp","M NC K",1997,"Oslo",4402,1870,2532,462,500,null,null,null,null,null,null,null,null,null,null,null,null,null,null,null,null,null,null,null,null,null,null,null,490,null,null,null,null,null,null,null,500,null,null,null,null,null,null,null,null,null,null,null,null,null,null,null,null,null,null,null,null,null,null,null,null,null,null,null,null,null,null,null,null,null,null,null,null,null,null,null,null,null,null,null,null,290,290]
["Livelten","Adrian Sørensen","IL Hjelset-Fram","Lillehammerhopp","M NC A",1994,"Møre og Romsdal",5109,2644,2465,225,265,null,null,null,null,null,null,null,null,null,null,null,null,195,null,null,null,null,null,null,null,null,null,null,260,null,null,null,null,null,null,null,220,190,230,225,null,null,null,null,null,null,null,null,null,190,185,null,null,null,null,null,null,null,null,null,null,null,null,null,null,null,null,null,null,null,null,null,null,null,null,null,null,null,null,null,null,null,null,null,null,null,280]
["Eriksen ","Espen Alexander","Tromsø Skiklub","Trønderhopp","M NC A",1994,"Troms",{"$f":"SUM(I66+J66)","v":2421},0,{"$f":"SUM(K66:DD66)","v":2421},null,null,null,165,200,null,null,null,null,null,null,null,null,null,180,null,null,null,null,null,null,null,null,null,null,180,null,null,null,null,null,null,null,145,145,215,195,null,null,null,null,216,null,null,null,null,185,195,null,null,null,null,null,null,null,null,null,null,null,null,null,null,null,null,null,null,null,null,null,null,null,null,null,null,null,null,200,200]
["Næsvold ","Kjell Andreas","Røykenhopp","Flying Team Vikersund","M NC A",1996,"Buskerud",3950,1555,2395,255,265,null,270,250,null,null,null,null,null,null,null,null,null,235,null,null,null,null,null,null,null,null,null,null,235,null,null,null,null,null,null,null,260,195,null,null,null,null,null,null,null,null,null,null,null,205,225]
["Brenna","Christian","Hakadal IL","Kollenhopp","M NC A",1995,"Akershus",4443,2145,2298,292,286,null,316,304,null,null,null,null,null,null,null,null,null,150,null,null,null,null,null,null,null,null,null,null,null,null,null,null,null,null,null,null,165,160,210,205,null,null,null,null,null,null,null,null,null,210]
["Hagemoen ","Leif Marius","Gausdal Skilag"," ","M NC A",1995,"Oppland",2295,0,2295,200,170,null,null,null,null,null,null,null,null,null,null,null,null,145,null,null,null,null,null,null,null,null,null,null,null,null,null,null,null,null,null,null,190,180,200,200,null,null,null,null,null,null,null,null,null,180,200,null,null,null,null,null,null,null,null,null,null,null,null,null,null,null,null,null,null,null,null,null,null,null,null,null,null,null,null,195,210,null,null,null,null,null,225]
["Langård ","Jonas","Hurdal IL"," ","M NC B",1993,"Akershus",3303,1243,2060,240,250,null,235,235,null,null,null,null,null,null,null,null,null,200,null,null,null,null,null,null,null,null,null,null,null,null,null,null,null,null,null,null,null,null,null,null,null,null,null,null,null,null,null,null,null,180,180,null,null,null,null,null,null,null,null,null,null,null,null,null,null,null,null,null,null,null,null,null,null,null,null,null,null,null,null,175,190,null,null,null,null,null,175]
["Fystro","Eirik","Leira IL","NTG","M NC B",1999,"Oppland",2116,112,2004,120,125,null,135,109,null,null,null,null,null,null,null,null,null,96,null,null,null,null,null,null,null,null,null,null,120,null,null,null,null,null,null,null,130,140,140,145,null,null,null,null,null,null,null,null,null,112,120,null,null,null,null,null,null,null,null,null,null,null,null,null,null,null,null,null,null,null,null,null,null,null,null,null,null,null,null,115,145,95,45,null,null,null,112]
["Korody","Christian","Jardar IL","Kollenhopp","M NC A",1993,"Akershus",3814,1789,2025,180,180,null,170,185,null,null,null,null,null,null,null,null,null,210,null,null,null,null,null,null,null,null,null,null,215,null,null,null,null,null,null,null,205,235,null,null,null,null,null,null,null,null,null,null,null,215,230]
["Malm ","Bjørnar Kristiansen","Byåsen IL","Trønderhopp","M NC A",1995,"S.Tr.lag",2550,540,2010,null,null,null,null,null,null,null,null,null,null,null,null,null,null,160,null,null,null,null,null,null,null,null,null,null,165,null,null,null,null,null,null,null,175,200,170,165,null,null,null,null,null,null,null,null,null,170,175,null,null,null,null,null,null,null,null,null,null,null,null,null,null,null,null,null,null,null,null,null,null,null,null,null,null,null,null,205,205,null,null,null,null,null,220]
["Lunnan ","Håvard Svingen","Skatval Skilag","Trønderhopp","M NC B",1996,"N.Tr.lag",2390,605,1785,null,null,null,190,170,null,null,null,null,null,null,null,null,null,170,null,null,null,null,null,null,null,null,null,null,155,null,null,null,null,null,null,null,null,null,190,180,null,null,null,null,null,null,null,null,null,null,null,null,null,null,null,null,null,null,null,null,null,null,null,null,null,null,null,null,null,null,null,null,null,null,null,null,null,null,null,145,180,90,145,null,null,null,170]
["Hast","Marius Aas","Mysen IL","Kollenhopp","M NC B",1999,"Østfold",2639,720,1919,160,160,null,130,130,null,null,null,null,null,null,null,null,null,null,null,null,null,null,null,null,null,null,null,null,170,null,null,null,null,null,null,null,170,165,null,null,null,null,null,null,204,null,null,null,null,165,170,null,null,null,null,null,null,null,null,null,null,null,null,null,null,null,null,null,null,null,null,null,null,null,null,null,null,null,null,155,null,85,55]
["Leirvaag","Håkon","Botne SK","NTG","M NC B",1997,"Vestfold/Telemark",2106,202,1904,155,155,null,145,180,null,null,null,null,null,null,null,null,null,109,null,null,null,null,null,null,null,null,null,null,null,null,null,null,null,null,null,null,125,165,130,170,null,null,null,null,null,null,null,null,null,null,160,null,null,null,null,null,null,null,null,null,null,null,null,null,null,null,null,null,null,null,null,null,null,null,null,null,null,null,null,120,115,80,95]
["Pettersen","Johannes","Tromsø Skiklub","Trønderhopp","M NC A",1998,"Troms",1835,0,1835,null,null,null,null,null,null,null,null,null,null,null,null,null,null,175,null,null,null,null,null,null,null,null,null,null,175,null,null,null,null,null,null,null,140,120,200,210,null,null,null,null,null,null,null,null,null,null,null,null,null,null,null,null,null,null,null,null,null,null,null,null,null,null,null,null,null,null,null,null,null,null,null,null,null,null,null,220,195,45,125,null,null,null,230]
["Berggaard","Mats Søhagen","Ringkollen Skiklubb","Flying Team Vikersund","M NC A",1995,"Buskerud",1827,0,1827,null,null,null,175,145,null,null,null,null,null,null,null,null,null,190,null,null,null,null,null,null,null,null,null,null,200,null,null,null,null,null,null,null,210,225,null,null,null,null,null,null,262,null,null,null,null,null,null,null,null,null,null,null,null,210,210]
["Østerhaug","Even Wålen","Søre Ål IL","Lillehammerhopp","M NC B",1999,"Oppland",1828,88,1740,100,106,null,96,112,null,null,null,null,null,null,null,null,null,48,null,null,null,null,null,null,null,null,null,null,125,null,null,null,null,null,null,null,109,109,112,103,null,null,null,null,null,null,null,null,null,106,109,null,null,null,null,null,null,null,null,null,null,null,null,null,null,null,null,null,null,null,null,null,null,null,null,null,null,null,null,160,125,null,105,null,null,null,115]
["Eriksrød","Joachim","Siljan IL","Team Telemark Hopp","M NC B",1998,"Telemark/Vestfold",2514,784,1730,145,135,null,100,120,null,null,null,null,null,null,null,null,null,140,null,null,null,null,null,null,null,null,null,null,null,null,null,null,null,null,null,null,145,155,null,null,null,null,null,null,188,null,null,null,null,135,112,null,null,null,null,null,null,null,null,null,null,null,null,null,null,null,null,null,null,null,null,null,null,null,null,null,null,null,null,150,155,50]
["Nystad","Lemet Johanas","Nordlys IL","NTG","M NC B",1998,"Finnmark",2105,421,1684,103,109,null,103,92,null,null,null,null,null,null,null,null,null,84,null,null,null,null,null,null,null,null,null,null,115,null,null,null,null,null,null,null,88,120,155,130,null,null,null,null,null,null,null,null,null,109,106,null,null,null,null,null,null,null,null,null,null,null,null,null,null,null,null,null,null,null,null,null,null,null,null,null,null,null,null,135,130,null,105]
["Loe ","Jens Fredrik","Byåsen IL","Trønderhopp","M NC A",1996,"S.Tr.lag",2409,757,1652,null,null,null,200,175,null,null,null,null,null,null,null,null,null,170,null,null,null,null,null,null,null,null,null,null,175,null,null,null,null,null,null,null,130,130,205,200,null,null,null,null,182,null,null,null,null,null,null,null,null,null,null,null,null,null,null,null,null,null,null,null,null,null,null,null,null,null,null,null,null,null,null,null,null,null,null,null,null,null,85]
["Jeremiassen ","Steffen","Skimt IL","Kollenhopp","M NC B",1997,"Akershus",2705,1150,1555,190,195,null,200,215,null,null,null,null,null,null,null,null,null,160,null,null,null,null,null,null,null,null,null,null,null,null,null,null,null,null,null,null,120,175,null,null,null,null,null,null,null,null,null,null,null,160,140]
["Markeng","Thomas Aasen","Lensbygda Sp.klubb"," ","M NC Elite",2000,"Oppland",2828,1344,1484,300,300,null,null,null,null,null,null,null,null,null,null,null,null,null,null,null,null,null,null,null,null,null,null,null,null,null,null,null,null,null,null,null,null,null,null,null,null,null,null,null,null,null,null,null,null,462,422]
["Østvold","Benjamin","Lensbygda Sp.klubb","Kollenhopp","M NC B",2001,"Oppland",2155,913,1242,175,180,null,120,125,null,null,null,null,null,null,null,null,null,165,null,null,null,null,null,null,null,null,null,null,null,null,null,null,null,null,null,null,106,null,null,null,null,null,null,null,null,null,null,null,null,145,96,null,null,null,null,null,null,null,null,null,null,null,null,null,null,null,null,null,null,null,null,null,null,null,null,null,null,null,null,null,null,null,null,null,null,null,130]
["Garberg ","Anders Bredesen","Orkdal IL","Trønderhopp","M NC B",1997,"S.Tr.lag",1215,0,1215,null,null,null,115,115,null,null,null,null,null,null,null,null,null,88,null,null,null,null,null,null,null,null,null,null,112,null,null,null,null,null,null,null,null,null,145,115,null,null,null,null,null,null,null,null,null,null,null,null,null,null,null,null,null,null,null,null,null,null,null,null,null,null,null,null,null,null,null,null,null,null,null,null,null,null,null,140,140,55,70,null,null,null,120]
["Lundgren","Olof","Trønderhopp","Trønderhopp","M NC A",1997,"S.Tr.lag",1458,128,1330,null,null,null,170,150,null,null,null,null,null,null,null,null,null,null,null,null,null,null,null,null,null,null,null,null,150,null,null,null,null,null,null,null,165,170,165,150,null,null,null,null,null,null,null,null,null,null,null,null,null,null,null,null,null,null,null,null,null,null,null,null,null,null,null,null,null,null,null,null,null,null,null,null,null,null,null,null,null,null,null,null,null,null,210]
["Evensen","Sigve","Moelven IL","Lillehammerhopp","M NC B",1998,"Hedmark",1267,132,1135,80,80,null,null,null,null,null,null,null,null,null,null,null,null,44,null,null,null,null,null,null,null,null,null,null,100,null,null,null,null,null,null,null,76,80,125,109,null,null,null,null,null,null,null,null,null,null,null,null,null,null,null,null,null,null,null,null,null,null,null,null,null,null,null,null,null,null,null,null,null,null,null,null,null,null,null,125,150,null,60,null,null,null,106]
["Langkaas","John Andre","Tyristubben IF","Team Telemark Hopp","M NC B",1999,"Buskerud",1951,788,1163,112,115,null,180,155,null,null,null,null,null,null,null,null,null,125,null,null,null,null,null,null,null,null,null,null,null,null,null,null,null,null,null,null,120,112,null,null,null,null,null,null,null,null,null,null,null,100,84,null,null,null,null,null,null,null,null,null,null,null,null,null,null,null,null,null,null,null,null,null,null,null,null,null,null,null,null,null,null,60]
["Tande ","Håkon-Kristoffer","Kongsberg IF","Flying Team Vikersund","M NC B",1999,"Buskerud",2085,934,1151,130,145,null,109,135,null,null,null,null,null,null,null,null,null,80,null,null,null,null,null,null,null,null,null,null,96,null,null,null,null,null,null,null,135,115,null,null,null,null,null,null,null,null,null,null,null,103,103]
["Fossum","Peder Isaksen","Trønderhopp","Trønderhopp","M NC B",1998,"S.Tr.lag",1189,160,1029,null,null,null,125,88,null,null,null,null,null,null,null,null,null,64,null,null,null,null,null,null,null,null,null,null,null,null,null,null,null,null,null,null,112,103,120,null,null,null,null,null,null,null,null,null,null,null,null,null,null,null,null,null,null,null,null,null,null,null,null,null,null,null,null,null,null,null,null,null,null,null,null,null,null,null,null,130,112,40,null,null,null,null,135]
["Fuhre ","Jan","Vikersund IF","Trønderhopp","M NC B",1991,"Buskerud",1740,675,1065,304,316,null,null,null,null,null,null,null,null,null,null,null,null,290,null,null,null,null,null,null,null,null,null,null,155]
["Sundal","Kristoffer Eriksen","Koll IL","Kollenhopp","M NC B",2001,"Oslo",1538,513,1025,190,200,null,null,null,null,null,null,null,null,null,null,null,null,155,null,null,null,null,null,null,null,null,null,null,null,null,null,null,null,null,null,null,200,null,null,null,null,null,null,null,null,null,null,null,null,150,130]
["Bratlien","Jonas","Bøverbru IL",null,"M NC B",1999,"Oppland",1979,1132,847,185,190,null,null,null,null,null,null,null,null,null,null,null,null,null,null,null,null,null,null,null,null,null,null,null,null,null,null,null,null,null,null,null,null,null,null,null,null,null,null,null,null,null,null,null,null,null,null,null,null,null,null,null,null,null,null,null,null,null,null,null,null,null,null,null,null,null,null,null,null,null,null,null,null,null,null,112,140,150,70]
["Bjørndalen","Sander","Heddal IL","Team Telemark Hopp","M NC B",1999,"Telemark/Vestfold",1433,420,1013,106,125,null,106,103,null,null,null,null,null,null,null,null,null,76,null,null,null,null,null,null,null,null,null,null,null,null,null,null,null,null,null,null,96,106,null,null,null,null,null,null,null,null,null,null,null,120,100,null,null,null,null,null,null,null,null,null,null,null,null,null,null,null,null,null,null,null,null,null,null,null,null,null,null,null,null,null,null,null,75]
["Åsen","Sindre   ","Oddersjaa SSK","NTG","M NC B",1999,"Agder/Rogaland",969,108,861,96,88,null,null,null,null,null,null,null,null,null,null,null,null,52,null,null,null,null,null,null,null,null,null,null,106,null,null,null,null,null,null,null,103,92,106,112,null,null,null,null,null,null,null,null,null,null,null,null,null,null,null,null,null,null,null,null,null,null,null,null,null,null,null,null,null,null,null,null,null,null,null,null,null,null,null,106]
["Gran","Fredrik","Byåsen IL","Trønderhopp","m NC B",1998,"S.Tr.lag",718,0,718,null,null,null,null,null,null,null,null,null,null,null,null,null,null,36,null,null,null,null,null,null,null,null,null,null,null,null,null,null,null,null,null,null,92,135,115,120,null,null,null,null,null,null,null,null,null,null,null,null,null,null,null,null,null,null,null,null,null,null,null,null,null,null,null,null,null,null,null,null,null,null,null,null,null,null,null,null,null,70,null,null,null,null,150]
["Kirknes","Edwin Madsen","Steinkjer Skiklubb",null,"M NC A",1999,"N.Tr.lag",{"$f":"SUM(I98+J98)","v":826},0,{"$f":"SUM(K98:DD98)","v":826},null,null,null,null,null,null,null,null,null,null,null,null,null,null,11,null,null,null,null,null,null,null,null,null,null,135,null,null,null,null,null,null,null,155,175,175,175]
["Eriksen ","Sander Vossan","Bækkelaget SK","Kollenhopp","M NC B",2000,"Oslo",1278,478,800,125,140,null,null,null,null,null,null,null,null,null,null,null,null,100,null,null,null,null,null,null,null,null,null,null,null,null,null,null,null,null,null,null,160,null,null,null,null,null,null,null,null,null,null,null,null,130,145]
["Haug","Tor Kristian","Skotfoss Turn & IF"," ","M NC B",1991,"Telemark/Vestfold",710,0,710,null,null,null,null,null,null,null,null,null,null,null,null,null,null,null,null,null,null,null,null,null,null,null,null,null,130,null,null,null,null,null,null,null,140,150,150,140]
["Haugelien","Tobias","Ringkollen Skiklubb","Team Telemark Hopp","M NC B",1999,"Buskerud",1291,626,665,72,89,null,84,84,null,null,null,null,null,null,null,null,null,null,null,null,null,null,null,null,null,null,null,null,null,null,null,null,null,null,null,null,72,76,null,null,null,null,null,null,null,null,null,null,null,96,92]
["Danielsen ","Stian","Alta IF","Trønderhopp","M NC A",1996,"Finnmark",1605,977,628,null,null,null,null,null,null,null,null,null,null,null,null,null,null,200,null,null,null,null,null,null,null,null,null,null,null,null,null,null,null,null,null,null,null,null,null,230,null,null,null,null,198]
["Elvevold ","August","Tromsø Skiklub","Trønderhopp","M NC B",1996,"Troms",479,0,479,null,null,null,null,null,null,null,null,null,null,null,null,null,null,null,null,null,null,null,null,null,null,null,null,null,null,null,null,null,null,null,null,null,null,null,109,130,null,null,null,null,null,null,null,null,null,null,null,null,null,null,null,null,null,null,null,null,null,null,null,null,null,null,null,null,null,null,null,null,null,null,null,null,null,null,null,null,null,null,80,null,null,null,160]
["Bjerkan","Tor Ole","Steinkjer Skiklubb",null,"M NC B",1999,"N.Tr.lag",610,0,610,null,null,null,null,null,null,null,null,null,null,null,null,null,null,40,null,null,null,null,null,null,null,null,null,null,null,null,null,null,null,null,null,null,115,130,165,160]
["Kvernmo","Mats Jakob","Steinkjer Skiklubb","Trønderhopp","M NC B",null,"N.Tr.lag",450,0,450,null,null,null,null,null,null,null,null,null,null,null,null,null,null,32,null,null,null,null,null,null,null,null,null,null,103,null,null,null,null,null,null,null,null,null,100,106,null,null,null,null,null,null,null,null,null,null,null,null,null,null,null,null,null,null,null,null,null,null,null,null,null,null,null,null,null,null,null,null,null,null,null,null,null,null,null,null,null,null,null,null,null,null,109]
["Stenumgaard","Ola","Sør-Fron IL","Trønderhopp","M NC B",1999,"Oppland",409,0,409,null," ",null,null,null,null,null,null,null,null,null,null,null,null,28,null,null,null,null,null,null,null,null,null,null,92,null,null,null,null,null,null,null,null,null,80,84,null,null,null,null,null,null,null,null,null,null,null,null,null,null,null,null,null,null,null,null,null,null,null,null,null,null,null,null,null,null,null,null,null,null,null,null,null,null,null,null,null,null,null,null,null,null,125]
["Gravermoen","Ole Gudbrand Kihle","Soknedalen IL","Flying Team Vikersund","M NC B",1998,"Buskerud",1332,821,511,140,115,null,92,96,null,null,null,null,null,null,null,null,null,68]
["Eikehaug ","Jarle","Ørn IF","Flying Team Vikersund","M NC B",1996,"Telemark/Vestfold",320,0,320,null,null,null,null,null,null,null,null,null,null,null,null,null,null,null,null,null,null,null,null,null,null,null,null,null,null,null,null,null,null,null,null,null,null,null,null,null,null,null,null,null,null,null,null,null,null,null,null,null,null,null,null,null,null,null,null,null,null,null,null,null,null,null,null,null,null,null,null,null,null,null,null,null,null,null,null,null,null,100,55,null,null,null,165]
["Grande","Sivert  ","Steinkjer SK","Trønderhopp","M NC B",null,"N.Tr.lag",371,0,371,null,null,null,null,null,null,null,null,null,null,null,null,null,null,null,null,null,null,null,null,null,null,null,null,null,88,null,null,null,null,null,null,null,null,null,84,96,null,null,null,null,null,null,null,null,null,null,null,null,null,null,null,null,null,null,null,null,null,null,null,null,null,null,null,null,null,null,null,null,null,null,null,null,null,null,null,null,null,null,null,null,null,null,103]
["Larsen","Patrick","Pors IF","Team Telemark Hopp","M NC B",1982,"Telemark/Vestfold",445,0,445,135,null,null,112,106,null,null,null,null,null,null,null,null,null,92,null,null,null,null,null,null,null,null,null,null,null,null,null,null,null,null,null,null," "," "]
["Strand ","Sølve Jokerud","Vikersund IF","Flying Team Vikersund","M NC B",2000,"Buskerud",560,130,430,165,150,null,null,null,null,null,null,null,null,null,null,null,null,115]
["Høgden","Harald Derås","Namdalseid IL",null,"M NC B",1999,"N.Tr.lag",410,0,410,null,null,null,null,null,null,null,null,null,null,null,null,null,null,135,null,null,null,null,null,null,null,null,null,null,140,null,null,null,null,null,null,null,null,null,135]
["Vethe ","Geir","Kolbukameratene",null,"M NC B",1977,"Oppland",868,501,367,76,76,null,88,103,null,null,null,null,null,null,null,null,null,24]
["Markeng","Simen Aasen","Lensbygda Sp.klubb"," ","M NC B",2002,"Oppland",535,199,336,null,null,null,null,null,null,null,null,null,null,null,null,null,null,56,null,null,null,null,null,null,null,null,null,null,null,null,null,null,null,null,null,null,null,null,null,null,null,null,null,null,null,null,null,null,null,125,155]
["Mellingsæter","Jo Rømme"," "," ","M NC B",2000," ",336,0,336,null,null,null,null,null,null,null,null,null,null,null,null,null,null,null,null,null,null,null,null,null,null,null,null,null,109,null,null,null,null,null,null,null,null,null,92,135]
["Karlsen","Kristian Forseth","Rognan IL","Trønderhopp","M NC B",1998,"Nordland",185,0,185,null,null,null,null,null,null,null,null,null,null,null,null,null,null,null,null,null,null,null,null,null,null,null,null,null,null,null,null,null,null,null,null,null,null,null,null,null,null,null,null,null,null,null,null,null,null,null,null,null,null,null,null,null,null,null,null,null,null,null,null,null,null,null,null,null,null,null,null,null,null,null,null,null,null,null,null,null,null,null,40,null,null,null,145]
["Månum","Markus","Raufoss IL","NTG","M NC B",1998,"Oppland",1125,825,300,null,null,null,null,null,null,null,null,null,null,null,null,null,null,null,null,null,null,null,null,null,null,null,null,null,null,null,null,null,null,null,null,null,150,150]
["Restad ","Bjørn Iver","IL Leik","Trønderhopp","M NC B",1993,"S.Tr.lag",457,172,285,null,null,null,null,null,null,null,null,null,null,null,null,null,null,109,null,null,null,null,null,null,null,null,null,null,null,null,null,null,null,null,null,null,null,null,96,80]
["Wohlen ","Martin","Steinkjer Skiklubb","Team NT","M NC B",1997,"N.Tr.lag",192,0,192,null,null,null,null,null,null,null,null,null,null,null,null,null,null,null,null,null,null,null,null,null,null,null,null,null,null,null,null,null,null,null,null,null,null,null,null,92,null,null,null,null,null,null,null,null,null,null,null,null,null,null,null,null,null,null,null,null,null,null,null,null,null,null,null,null,null,null,null,null,null,null,null,null,null,null,null,null,null,null,null,null,null,null,100]
["Gaarder","Jens","Raufoss IL",null,"M NC B",null,"Oppland",262,0,262,null,null,null,null,null,null,null,null,null,null,null,null,null,null,112,null,null,null,null,null,null,null,null,null,null,null,null,null,null,null,null,null,null,null,null,null,null,null,null,null,null,null,null,null,null,null,null,150]
["Kjølberg","Morten Robsahm","Asker Skiklubb"," ","M NC B",1999,"Akershus",259,0,259,115,72,null,null,null,null,null,null,null,null,null,null,null,null,72]
["Skorstad","Ruben","Byåsen IL"," ","M NC B",2000,"S.Tr.lag",258,0,258,null,null,null,null,null,null,null,null,null,null,null,null,null,null,null,null,null,null,null,null,null,null,null,null,null,null,null,null,null,null,null,null,null,null,null,103,155]
["Knutsen","Magnus","Furnes Skil.for","Hedmarkhopp","M NC B",1999,"Hedmark",255,0,255,null,null,null,null,null,null,null,null,null,null,null,null,null,null,null,null,null,null,null,null,null,null,null,null,null,null,null,null,null,null,null,null,null,null,null,null,null,null,null,null,null,null,null,null,null,null,140,115]
["Laeskogen","Gaute","Raufoss IL",null,"M NC B",2000,"Oppland",245,0,245,null,null,null,null,null,null,null,null,null,null,null,null,null,null,120,null,null,null,null,null,null,null,null,null,null,null,null,null,null,null,null,null,null,null,null,null,null,null,null,null,null,null,null,null,null,null,null,125]
["Bakke ","Edvart Myrvang","Hedalen IL","Flying Team Vikersund","M NC B",1996,"Buskerud",1384,1155,229,null,null,null,null,null,null,null,null,null,null,null,null,null,null,null,null,null,null,null,null,null,null,null,null,null,null,null,null,null,null,null,null,null,null,null,null,null,null,null,null,null,null,null,null,null,null,null,null,null,null,null,null,null,null,null,null,null,null,null,null,null,null,null,null,null,null,null,null,null,null,null,null,null,null,null,null,109,120]
["Guhnfeldt","Erik Pettersen","Gjerpenkollen hoppklubb","Flying Team Vikersund","M NC B",1998,"Buskerud",364,140,224,null,null,null,null,null,null,null,null,null,null,null,null,null,null,60,null,null,null,null,null,null,null,null,null,null,null,null,null,null,null,null,null,null,80,84]
["Haave","Henrik","Nordre Land IL"," ","M NC B",2000,"Oppland",393,184,209,109,100]
["Tiller","Vegar","Moelven IL","NTG","M NC B",1998,"Hedmark",203,0,203,null,null,null,null,null,null,null,null,null,null,null,null,null,null,null,null,null,null,null,null,null,null,null,null,null,null,null,null,null,null,null,null,null,100,103]
["Prestegård","Olav Dvergsdal","Vestre Akers SK","Kollenhopp","M NC B",1995,"Oslo",411,212,199,96,103]
["Straumsheim","Øyvind","Molde og Omegn IF"," ","M NC B"," ","Møre&Romsdal",{"$f":"SUM(I130+J130)","v":96},0,{"$f":"SUM(K130:DD130)","v":96},null,null,null,null,null,null,null,null,null,null,null,null,null,null,null,null,null,null,null,null,null,null,null,null,null,null,null,null,null,null,null,null,null,null,null,null,null,null,null,null,null,null,null,null,null,null,null,null,null,null,null,null,null,null,null,null,null,null,null,null,null,null,null,null,null,null,null,null,null,null,null,null,null,null,null,null,null,null,null,null,null,null,null,96]
["Hovdenak","Erik","Molde og Omegn IF"," ","M NC B",2001,"Møre&Romsdal",92,0,92,null,null,null,null,null,null,null,null,null,null,null,null,null,null,null,null,null,null,null,null,null,null,null,null,null,null,null,null,null,null,null,null,null,null,null,null,null,null,null,null,null,null,null,null,null,null,null,null,null,null,null,null,null,null,null,null,null,null,null,null,null,null,null,null,null,null,null,null,null,null,null,null,null,null,null,null,null,null,null,null,null,null,null,92]
["Dyrendahl","Anders","Byåsen IL"," ","M NC B",2000,"S.Tr.lag",188,0,188,null,null,null,null,null,null,null,null,null,null,null,null,null,null,null,null,null,null,null,null,null,null,null,null,null,null,null,null,null,null,null,null,null,null,null,88,100]
["Bergh","Michael Alderin","Ullensaker Skiklubb","Kollenhopp","M NC B",1999,"Akershus",180,0,180,88,92]
["Norseng","Haakon","IL Ivrig","Flying Team Vikersund","M NC B",1993,"Telemark/Vestfold",180,0,180,84,96]
["Fretheim","Henrik","Kongsberg IF","Flying Team Vikersund","M NC B",1993,"Buskerud",180,0,180,null,null,null,null,null,null,null,null,null,null,null,null,null,null,null,null,null,null,null,null,null,null,null,null,null,null,null,null,null,null,null,null,null,null,null,null,null,null,null,null,null,null,null,null,null,null,92,88]
["Larsen","Alexander","Botne SK","Flying Team Vikersund","M NC B",2000,"Telemark/Vestfold",172,0,172,null,null,null,null,null,null,null,null,null,null,null,null,null,null,null,null,null,null,null,null,null,null,null,null,null,null,null,null,null,null,null,null,null,84,88]
["Johnson","Alexander Røshol","Molde og Omegn IF","NTG","M NC B",1998,"Møre&Romsdal",293,228,65,null,null,null,null,null,null,null,null,null,null,null,null,null,null,null,null,null,null,null,null,null,null,null,null,null,null,null,null,null,null,null,null,null,null,null,null,null,null,null,null,null,null,null,null,null,null,null,null,null,null,null,null,null,null,null,null,null,null,null,null,null,null,null,null,null,null,null,null,null,null,null,null,null,null,null,null,null,null,65]
["Kvarstad","Simen","Byåsen IL","Trønderhopp","M NC B",2000,"S.Tr.lag",659,514,145,null,null,null,null,null,null,null,null,null,null,null,null,null,null,null,null,null,null,null,null,null,null,null,null,null,145]
["Holt","Ole Henning","Sannidal IL",null,"M NC B",null,"Telemark/Vestfold",130,0,130," ",130]
["Skårseth","Lars Ivar","Søre Ål IL","NTG","M NC B",null,"Oppland",430,315,115,null,null,null,null,null,null,null,null,null,null,null,null,null,null,null,null,null,null,null,null,null,null,null,null,null,null,null,null,null,null,null,null,null,null,null,null,null,null,null,null,null,null,null,null,null,null,null,null,null,null,null,null,null,null,null,null,null,null,null,null,null,null,null,null,null,null,null,null,null,null,null,null,null,null,null,null,null,null,115]
["Olsby ","Espen","Lensbygda Sp.klubb",null,"M NC B",null,"Oppland",115,0,115,null,null,null,null,null,null,null,null,null,null,null,null,null,null,null,null,null,null,null,null,null,null,null,null,null,null,null,null,null,null,null,null,null,null,null,null,null,null,null,null,null,null,null,null,null,null,115]
["Skoglund","Aleksander","Molde og Omegn IF",null,"M NC B",1999,"Møre&Romsdal",0,0,0]
["Skoglund","Andreas","Molde og Omegn IF",null,"M NC B",2001,"Møre&Romsdal",0,0,0]
["Berg","Kevin"," ","Trønderhopp","M NC B",1999,"Oppland",88,0,88,null,null,null,null,null,null,null,null,null,null,null,null,null,null,null,null,null,null,null,null,null,null,null,null,null,null,null,null,null,null,null,null,null,null,null,null,88]
["Guhnfeldt","Anders Pettersen","Gjerpenkollen hoppklubb","Flying Team Vikersund","M NC B",1998,"Buskerud",157,135,22,null,null,null,null,null,null,null,null,null,null,null,null,null,null,22]
["Aasberg","Nikolai","Røykenhopp","Flying Team Vikersund","M NC B",1998,"Buskerud",1625,1625,0]
["Bråtane","Sondre Vestøl","Sogne SK","Trønderhopp","M NC B",1996,"Agder/Rogaland",1368,1368,0]
["Hoff ","Andreas","Raufoss IL","Lillehammerhopp","M NC B",1993,"Oppland",810,810,0]
["Inngjerdingen ","Christian","Øvrevoll/Hosle IL","Kollenhopp","M NC B",1996,"Oslo",545,545,0]
["Strøm","Jørgen Oliver","Alta IF","Hedmarkhopp","M NC B",2000,"Finnmark",295,295,0]
["Øvregård ","Jens Schøien","Vålerenga Ski","Kollenhopp","M NC B",1996,"Oslo",240,240,0]
["Amble","Esben A Johansen","Ullensaker Skiklubb"," ","M NC B",2001,"Akershus",184,184,0]
["Næsvold ","Leif Torbjørn","Røykenhopp","Flying Team Vikersund","M NC B",1998,"Buskerud",175,175,0]
["Riiber ","Harald Jonas","Heming IL","Kollenhopp","M NC K",1995,"Oslo",798,798,0]

{"sheet":"Ark2","index":2,"n_rows":0,"n_cols":0,"rows_kept":0,"cut":false,"hidden":false,"merged":[]}

{"sheet":"Ark3","index":3,"n_rows":0,"n_cols":0,"rows_kept":0,"cut":false,"hidden":false,"merged":[]}